Workbook

Sheet Year Trends
A1: Expense Trends Title
A2: Month | B2: Expense 1 | C2: Expense 2 | D2: Expense 3 | E2: Expense 4 | F2: Expense 5
A3: Jan | B3: =SUBTOTAL(109,Expense11[Amount]) -> 100.00 | C3: =SUBTOTAL(109,Expense21[Amount]) -> 200.00 | D3: =SUBTOTAL(109,Expense31[Amount]) -> 300.00 | E3: =SUBTOTAL(109,Expense41[Amount]) -> 400.00 | F3: =SUBTOTAL(109,Expense51[Amount]) -> 500.00
A4: Feb | B4: =SUBTOTAL(109,Expense12[Amount]) -> 200.00 | C4: =SUBTOTAL(109,Expense22[Amount]) -> 200.00 | D4: =SUBTOTAL(109,Expense32[Amount]) -> 300.00 | E4: =SUBTOTAL(109,Expense42[Amount]) -> 400.00 | F4: =SUBTOTAL(109,Expense52[Amount]) -> 500.00
A5: Mar | B5: =SUBTOTAL(109,Expense13[Amount]) -> 300.00 | C5: =SUBTOTAL(109,Expense23[Amount]) -> 200.00 | D5: =SUBTOTAL(109,Expense33[Amount]) -> 300.00 | E5: =SUBTOTAL(109,Expense43[Amount]) -> 400.00 | F5: =SUBTOTAL(109,Expense53[Amount]) -> 500.00
A6: Apr | B6: =SUBTOTAL(109,Expense14[Amount]) -> 400.00 | C6: =SUBTOTAL(109,Expense24[Amount]) -> 200.00 | D6: =SUBTOTAL(109,Expense34[Amount]) -> 300.00 | E6: =SUBTOTAL(109,Expense44[Amount]) -> 400.00 | F6: =SUBTOTAL(109,Expense54[Amount]) -> 500.00
A7: May | B7: =SUBTOTAL(109,Expense15[Amount]) -> 500.00 | C7: =SUBTOTAL(109,Expense25[Amount]) -> 200.00 | D7: =SUBTOTAL(109,Expense35[Amount]) -> 300.00 | E7: =SUBTOTAL(109,Expense45[Amount]) -> 400.00 | F7: =SUBTOTAL(109,Expense55[Amount]) -> 500.00
A8: Jun | B8: =SUBTOTAL(109,Expense16[Amount]) -> 600.00 | C8: =SUBTOTAL(109,Expense26[Amount]) -> 200.00 | D8: =SUBTOTAL(109,Expense36[Amount]) -> 300.00 | E8: =SUBTOTAL(109,Expense46[Amount]) -> 400.00 | F8: =SUBTOTAL(109,Expense56[Amount]) -> 500.00
A9: Jul | B9: =SUBTOTAL(109,Expense17[Amount]) -> 700.00 | C9: =SUBTOTAL(109,Expense27[Amount]) -> 200.00 | D9: =SUBTOTAL(109,Expense37[Amount]) -> 300.00 | E9: =SUBTOTAL(109,Expense47[Amount]) -> 400.00 | F9: =SUBTOTAL(109,Expense57[Amount]) -> 500.00
A10: Aug | B10: =SUBTOTAL(109,Expense18[Amount]) -> 800.00 | C10: =SUBTOTAL(109,Expense28[Amount]) -> 200.00 | D10: =SUBTOTAL(109,Expense38[Amount]) -> 300.00 | E10: =SUBTOTAL(109,Expense48[Amount]) -> 400.00 | F10: =SUBTOTAL(109,Expense58[Amount]) -> 500.00
A11: Sep | B11: =SUBTOTAL(109,Expense19[Amount]) -> 900.00 | C11: =SUBTOTAL(109,Expense29[Amount]) -> 200.00 | D11: =SUBTOTAL(109,Expense39[Amount]) -> 300.00 | E11: =SUBTOTAL(109,Expense49[Amount]) -> 400.00 | F11: =SUBTOTAL(109,Expense59[Amount]) -> 500.00
A12: Oct | B12: =SUBTOTAL(109,Expense110[Amount]) -> 1,000.00 | C12: =SUBTOTAL(109,Expense210[Amount]) -> 200.00 | D12: =SUBTOTAL(109,Expense310[Amount]) -> 300.00 | E12: =SUBTOTAL(109,Expense410[Amount]) -> 400.00 | F12: =SUBTOTAL(109,Expense510[Amount]) -> 500.00
A13: Nov | B13: =SUBTOTAL(109,Expense111[Amount]) -> 1,100.00 | C13: =SUBTOTAL(109,Expense211[Amount]) -> 200.00 | D13: =SUBTOTAL(109,Expense311[Amount]) -> 300.00 | E13: =SUBTOTAL(109,Expense411[Amount]) -> 400.00 | F13: =SUBTOTAL(109,Expense511[Amount]) -> 500.00
A14: Dec | B14: =SUBTOTAL(109,Expense112[Amount]) -> 1,200.00 | C14: =SUBTOTAL(109,Expense212[Amount]) -> 200.00 | D14: =SUBTOTAL(109,Expense312[Amount]) -> 300.00 | E14: =SUBTOTAL(109,Expense412[Amount]) -> 400.00 | F14: =SUBTOTAL(109,Expense512[Amount]) -> 500.00
A15: Total | B15: =SUM(B3:B14) -> 7,800.00 | C15: =SUM(C3:C14) -> 2,400.00 | D15: =SUM(D3:D14) -> 3,600.00 | E15: =SUM(E3:E14) -> 4,800.00 | F15: =SUM(F3:F14) -> 6,000.00
A16: Trends

Sheet Jan
A1: January Expenses
C3: TOTAL | D3: =SUM(D10,D17,D24,D30,D36) -> $1,500.00
A4: Expense 1
A5: Date | B5: PO# | C5: Supplier/Description | D5: Amount
A6: 2010-01-08 | C6: Example 1 | D6: 100.00
A10: Subtotal | D10: =SUBTOTAL(109,Expense11[Amount]) -> 100.00
A11: x
A12: Expense 2
A13: Date | B13: PO# | C13: Description | D13: Amount
A14: 2010-01-04 | C14: Example 2 | D14: 200.00
A17: Subtotal | D17: =SUBTOTAL(109,Expense21[Amount]) -> 200.00
A18: x
A19: Expense 3
A20: Date | B20: PO# | C20: Supplier/Description | D20: Amount
A21: 2010-01-02 | C21: Example 3 | D21: 300.00
A24: Subtotal | D24: =SUBTOTAL(109,Expense31[Amount]) -> 300.00
A25: x
A26: Expense 4
A27: Date | B27: PO# | C27: Supplier/Description | D27: Amount
A28: 2010-01-10 | C28: Example 4 | D28: 400.00
A30: Subtotal | D30: =SUBTOTAL(109,Expense41[Amount]) -> 400.00
A31: s
A32: Expense 5
A33: Date | B33: PO# | C33: Supplier/Description | D33: Amount
A34: 2010-01-25 | C34: Example 5 | D34: 500.00
A36: Subtotal | D36: =SUBTOTAL(109,Expense51[Amount]) -> 500.00

Sheet Feb
A1: February Expenses
C3: TOTAL | D3: =SUM(D10,D17,D24,D30,D36) -> 1,600.00
A4: Expense 1
A5: Date | B5: PO# | C5: Supplier/Description | D5: Amount
A6: 2010-02-08 | C6: Example 1 | D6: 200.00
A10: Subtotal | D10: =SUBTOTAL(109,Expense12[Amount]) -> 200.00
A11: x
A12: Expense 2
A13: Date | B13: PO# | C13: Description | D13: Amount
A14: 2010-02-04 | C14: Example 2 | D14: 200.00
A17: Subtotal | D17: =SUBTOTAL(109,Expense22[Amount]) -> 200.00
A18: x
A19: Expense 3
A20: Date | B20: PO# | C20: Supplier/Description | D20: Amount
A21: 2010-02-02 | C21: Example 3 | D21: 300.00
A24: Subtotal | D24: =SUBTOTAL(109,Expense32[Amount]) -> 300.00
A25: x
A26: Expense 4
A27: Date | B27: PO# | C27: Supplier/Description | D27: Amount
A28: 2010-02-10 | C28: Example 4 | D28: 400.00
A30: Subtotal | D30: =SUBTOTAL(109,Expense42[Amount]) -> 400.00
A31: s
A32: Expense 5
A33: Date | B33: PO# | C33: Supplier/Description | D33: Amount
A34: 2010-02-25 | C34: Example 5 | D34: 500.00
A36: Subtotal | D36: =SUBTOTAL(109,Expense52[Amount]) -> 500.00

Sheet Mar
A1: March Expenses
C3: TOTAL | D3: =SUM(D10,D17,D24,D30,D36) -> 1,700.00
A4: Expense 1
A5: Date | B5: PO# | C5: Supplier/Description | D5: Amount
A6: 2010-03-08 | C6: Example 1 | D6: 300.00
A10: Subtotal | D10: =SUBTOTAL(109,Expense13[Amount]) -> 300.00
A11: x
A12: Expense 2
A13: Date | B13: PO# | C13: Description | D13: Amount
A14: 2010-03-04 | C14: Example 2 | D14: 200.00
A17: Subtotal | D17: =SUBTOTAL(109,Expense23[Amount]) -> 200.00
A18: x
A19: Expense 3
A20: Date | B20: PO# | C20: Supplier/Description | D20: Amount
A21: 2010-03-02 | C21: Example 3 | D21: 300.00
A24: Subtotal | D24: =SUBTOTAL(109,Expense33[Amount]) -> 300.00
A25: x
A26: Expense 4
A27: Date | B27: PO# | C27: Supplier/Description | D27: Amount
A28: 2010-03-10 | C28: Example 4 | D28: 400.00
A30: Subtotal | D30: =SUBTOTAL(109,Expense43[Amount]) -> 400.00
A31: s
A32: Expense 5
A33: Date | B33: PO# | C33: Supplier/Description | D33: Amount
A34: 2010-03-25 | C34: Example 5 | D34: 500.00
A36: Subtotal | D36: =SUBTOTAL(109,Expense53[Amount]) -> 500.00

Sheet Apr
A1: April Expenses
C3: TOTAL | D3: =SUM(D10,D17,D24,D30,D36) -> 1,800.00
A4: Expense 1
A5: Date | B5: PO# | C5: Supplier/Description | D5: Amount
A6: 2010-04-08 | C6: Example 1 | D6: 400.00
A10: Subtotal | D10: =SUBTOTAL(109,Expense14[Amount]) -> 400.00
A11: x
A12: Expense 2
A13: Date | B13: PO# | C13: Description | D13: Amount
A14: 2010-04-04 | C14: Example 2 | D14: 200.00
A17: Subtotal | D17: =SUBTOTAL(109,Expense24[Amount]) -> 200.00
A18: x
A19: Expense 3
A20: Date | B20: PO# | C20: Supplier/Description | D20: Amount
A21: 2010-04-02 | C21: Example 3 | D21: 300.00
A24: Subtotal | D24: =SUBTOTAL(109,Expense34[Amount]) -> 300.00
A25: x
A26: Expense 4
A27: Date | B27: PO# | C27: Supplier/Description | D27: Amount
A28: 2010-04-10 | C28: Example 4 | D28: 400.00
A30: Subtotal | D30: =SUBTOTAL(109,Expense44[Amount]) -> 400.00
A31: s
A32: Expense 5
A33: Date | B33: PO# | C33: Supplier/Description | D33: Amount
A34: 2010-04-25 | C34: Example 5 | D34: 500.00
A36: Subtotal | D36: =SUBTOTAL(109,Expense54[Amount]) -> 500.00

Sheet May
A1: May Expenses
C3: TOTAL | D3: =SUM(D10,D17,D24,D30,D36) -> 1,900.00
A4: Expense 1
A5: Date | B5: PO# | C5: Supplier/Description | D5: Amount
A6: 2010-05-08 | C6: Example 1 | D6: 500.00
A10: Subtotal | D10: =SUBTOTAL(109,Expense15[Amount]) -> 500.00
A11: x
A12: Expense 2
A13: Date | B13: PO# | C13: Description | D13: Amount
A14: 2010-05-04 | C14: Example 2 | D14: 200.00
A17: Subtotal | D17: =SUBTOTAL(109,Expense25[Amount]) -> 200.00
A18: x
A19: Expense 3
A20: Date | B20: PO# | C20: Supplier/Description | D20: Amount
A21: 2010-05-02 | C21: Example 3 | D21: 300.00
A24: Subtotal | D24: =SUBTOTAL(109,Expense35[Amount]) -> 300.00
A25: x
A26: Expense 4
A27: Date | B27: PO# | C27: Supplier/Description | D27: Amount
A28: 2010-05-10 | C28: Example 4 | D28: 400.00
A30: Subtotal | D30: =SUBTOTAL(109,Expense45[Amount]) -> 400.00
A31: s
A32: Expense 5
A33: Date | B33: PO# | C33: Supplier/Description | D33: Amount
A34: 2010-05-25 | C34: Example 5 | D34: 500.00
A36: Subtotal | D36: =SUBTOTAL(109,Expense55[Amount]) -> 500.00

Sheet Jun
A1: June Expenses
C3: TOTAL | D3: =SUM(D10,D17,D24,D30,D36) -> 2,000.00
A4: Expense 1
A5: Date | B5: PO# | C5: Supplier/Description | D5: Amount
A6: 2010-06-08 | C6: Example 1 | D6: 600.00
A10: Subtotal | D10: =SUBTOTAL(109,Expense16[Amount]) -> 600.00
A11: x
A12: Expense 2
A13: Date | B13: PO# | C13: Description | D13: Amount
A14: 2010-06-04 | C14: Example 2 | D14: 200.00
A17: Subtotal | D17: =SUBTOTAL(109,Expense26[Amount]) -> 200.00
A18: x
A19: Expense 3
A20: Date | B20: PO# | C20: Supplier/Description | D20: Amount
A21: 2010-06-02 | C21: Example 3 | D21: 300.00
A24: Subtotal | D24: =SUBTOTAL(109,Expense36[Amount]) -> 300.00
A25: x
A26: Expense 4
A27: Date | B27: PO# | C27: Supplier/Description | D27: Amount
A28: 2010-06-10 | C28: Example 4 | D28: 400.00
A30: Subtotal | D30: =SUBTOTAL(109,Expense46[Amount]) -> 400.00
A31: s
A32: Expense 5
A33: Date | B33: PO# | C33: Supplier/Description | D33: Amount
A34: 2010-06-25 | C34: Example 5 | D34: 500.00
A36: Subtotal | D36: =SUBTOTAL(109,Expense56[Amount]) -> 500.00

Sheet Jul
A1: July Expenses
C3: TOTAL | D3: =SUM(D10,D17,D24,D30,D36) -> 2,100.00
A4: Expense 1
A5: Date | B5: PO# | C5: Supplier/Description | D5: Amount
A6: 2010-07-08 | C6: Example 1 | D6: 700.00
A10: Subtotal | D10: =SUBTOTAL(109,Expense17[Amount]) -> 700.00
A11: x
A12: Expense 2
A13: Date | B13: PO# | C13: Description | D13: Amount
A14: 2010-07-04 | C14: Example 2 | D14: 200.00
A17: Subtotal | D17: =SUBTOTAL(109,Expense27[Amount]) -> 200.00
A18: x
A19: Expense 3
A20: Date | B20: PO# | C20: Supplier/Description | D20: Amount
A21: 2010-07-02 | C21: Example 3 | D21: 300.00
A24: Subtotal | D24: =SUBTOTAL(109,Expense37[Amount]) -> 300.00
A25: x
A26: Expense 4
A27: Date | B27: PO# | C27: Supplier/Description | D27: Amount
A28: 2010-07-10 | C28: Example 4 | D28: 400.00
A30: Subtotal | D30: =SUBTOTAL(109,Expense47[Amount]) -> 400.00
A31: s
A32: Expense 5
A33: Date | B33: PO# | C33: Supplier/Description | D33: Amount
A34: 2010-07-25 | C34: Example 5 | D34: 500.00
A36: Subtotal | D36: =SUBTOTAL(109,Expense57[Amount]) -> 500.00

Sheet Aug
A1: August Expenses
C3: TOTAL | D3: =SUM(D10,D17,D24,D30,D36) -> 2,200.00
A4: Expense 1
A5: Date | B5: PO# | C5: Supplier/Description | D5: Amount
A6: 2010-08-08 | C6: Example 1 | D6: 800.00
A10: Subtotal | D10: =SUBTOTAL(109,Expense18[Amount]) -> 800.00
A11: x
A12: Expense 2
A13: Date | B13: PO# | C13: Description | D13: Amount
A14: 2010-08-04 | C14: Example 2 | D14: 200.00
A17: Subtotal | D17: =SUBTOTAL(109,Expense28[Amount]) -> 200.00
A18: x
A19: Expense 3
A20: Date | B20: PO# | C20: Supplier/Description | D20: Amount
A21: 2010-08-02 | C21: Example 3 | D21: 300.00
A24: Subtotal | D24: =SUBTOTAL(109,Expense38[Amount]) -> 300.00
A25: x
A26: Expense 4
A27: Date | B27: PO# | C27: Supplier/Description | D27: Amount
A28: 2010-08-10 | C28: Example 4 | D28: 400.00
A30: Subtotal | D30: =SUBTOTAL(109,Expense48[Amount]) -> 400.00
A31: s
A32: Expense 5
A33: Date | B33: PO# | C33: Supplier/Description | D33: Amount
A34: 2010-08-25 | C34: Example 5 | D34: 500.00
A36: Subtotal | D36: =SUBTOTAL(109,Expense58[Amount]) -> 500.00

Sheet Sep
A1: September Expenses
C3: TOTAL | D3: =SUM(D10,D17,D24,D30,D36) -> 2,300.00
A4: Expense 1
A5: Date | B5: PO# | C5: Supplier/Description | D5: Amount
A6: 2010-09-08 | C6: Example 1 | D6: 900.00
A10: Subtotal | D10: =SUBTOTAL(109,Expense19[Amount]) -> 900.00
A11: x
A12: Expense 2
A13: Date | B13: PO# | C13: Description | D13: Amount
A14: 2010-09-04 | C14: Example 2 | D14: 200.00
A17: Subtotal | D17: =SUBTOTAL(109,Expense29[Amount]) -> 200.00
A18: x
A19: Expense 3
A20: Date | B20: PO# | C20: Supplier/Description | D20: Amount
A21: 2010-09-02 | C21: Example 3 | D21: 300.00
A24: Subtotal | D24: =SUBTOTAL(109,Expense39[Amount]) -> 300.00
A25: x
A26: Expense 4
A27: Date | B27: PO# | C27: Supplier/Description | D27: Amount
A28: 2010-09-10 | C28: Example 4 | D28: 400.00
A30: Subtotal | D30: =SUBTOTAL(109,Expense49[Amount]) -> 400.00
A31: s
A32: Expense 5
A33: Date | B33: PO# | C33: Supplier/Description | D33: Amount
A34: 2010-09-25 | C34: Example 5 | D34: 500.00
A36: Subtotal | D36: =SUBTOTAL(109,Expense59[Amount]) -> 500.00

Sheet Oct
A1: October Expenses
C3: TOTAL | D3: =SUM(D10,D17,D24,D30,D36) -> 2,400.00
A4: Expense 1
A5: Date | B5: PO# | C5: Supplier/Description | D5: Amount
A6: 2010-10-08 | C6: Example 1 | D6: 1,000.00
A10: Subtotal | D10: =SUBTOTAL(109,Expense110[Amount]) -> 1,000.00
A11: x
A12: Expense 2
A13: Date | B13: PO# | C13: Description | D13: Amount
A14: 2010-10-04 | C14: Example 2 | D14: 200.00
A17: Subtotal | D17: =SUBTOTAL(109,Expense210[Amount]) -> 200.00
A18: x
A19: Expense 3
A20: Date | B20: PO# | C20: Supplier/Description | D20: Amount
A21: 2010-10-02 | C21: Example 3 | D21: 300.00
A24: Subtotal | D24: =SUBTOTAL(109,Expense310[Amount]) -> 300.00
A25: x
A26: Expense 4
A27: Date | B27: PO# | C27: Supplier/Description | D27: Amount
A28: 2010-10-10 | C28: Example 4 | D28: 400.00
A30: Subtotal | D30: =SUBTOTAL(109,Expense410[Amount]) -> 400.00
A31: s
A32: Expense 5
A33: Date | B33: PO# | C33: Supplier/Description | D33: Amount
A34: 2010-10-25 | C34: Example 5 | D34: 500.00
A36: Subtotal | D36: =SUBTOTAL(109,Expense510[Amount]) -> 500.00

Sheet Nov
A1: November Expenses
C3: TOTAL | D3: =SUM(D10,D17,D24,D30,D36) -> 2,500.00
A4: Expense 1
A5: Date | B5: PO# | C5: Supplier/Description | D5: Amount
A6: 2010-11-08 | C6: Example 1 | D6: 1,100.00
A10: Subtotal | D10: =SUBTOTAL(109,Expense111[Amount]) -> 1,100.00
A11: x
A12: Expense 2
A13: Date | B13: PO# | C13: Description | D13: Amount
A14: 2010-11-04 | C14: Example 2 | D14: 200.00
A17: Subtotal | D17: =SUBTOTAL(109,Expense211[Amount]) -> 200.00
A18: x
A19: Expense 3
A20: Date | B20: PO# | C20: Supplier/Description | D20: Amount
A21: 2010-11-02 | C21: Example 3 | D21: 300.00
A24: Subtotal | D24: =SUBTOTAL(109,Expense311[Amount]) -> 300.00
A25: x
A26: Expense 4
A27: Date | B27: PO# | C27: Supplier/Description | D27: Amount
A28: 2010-11-10 | C28: Example 4 | D28: 400.00
A30: Subtotal | D30: =SUBTOTAL(109,Expense411[Amount]) -> 400.00
A31: s
A32: Expense 5
A33: Date | B33: PO# | C33: Supplier/Description | D33: Amount
A34: 2010-11-25 | C34: Example 5 | D34: 500.00
A36: Subtotal | D36: =SUBTOTAL(109,Expense511[Amount]) -> 500.00

Sheet Dec
A1: December Expenses
C3: TOTAL | D3: =SUM(D10,D17,D24,D30,D36) -> 2,600.00
A4: Expense 1
A5: Date | B5: PO# | C5: Supplier/Description | D5: Amount
A6: 2010-12-08 | C6: Example 1 | D6: 1,200.00
A10: Subtotal | D10: =SUBTOTAL(109,Expense112[Amount]) -> 1,200.00
A11: x
A12: Expense 2
A13: Date | B13: PO# | C13: Description | D13: Amount
A14: 2010-12-04 | C14: Example 2 | D14: 200.00
A17: Subtotal | D17: =SUBTOTAL(109,Expense212[Amount]) -> 200.00
A18: x
A19: Expense 3
A20: Date | B20: PO# | C20: Supplier/Description | D20: Amount
A21: 2010-12-02 | C21: Example 3 | D21: 300.00
A24: Subtotal | D24: =SUBTOTAL(109,Expense312[Amount]) -> 300.00
A25: x
A26: Expense 4
A27: Date | B27: PO# | C27: Supplier/Description | D27: Amount
A28: 2010-12-10 | C28: Example 4 | D28: 400.00
A30: Subtotal | D30: =SUBTOTAL(109,Expense412[Amount]) -> 400.00
A31: s
A32: Expense 5
A33: Date | B33: PO# | C33: Supplier/Description | D33: Amount
A34: 2010-12-25 | C34: Example 5 | D34: 500.00
A36: Subtotal | D36: =SUBTOTAL(109,Expense512[Amount]) -> 500.00
